fUST/lending_fUST_20250206
["ID","MTS","AMOUNT","RATE_DAILY","PERIOD"]
[351922937,1738846241090,-500.0,0.00013835,2]
[351922939,1738846241099,-500.0,0.00013835,2]
[351922941,1738846241108,-1115.31,0.00013835,2]
[351922943,1738846241118,-424.86869562,0.00013835,2]
[351922945,1738846241127,-500.0,0.00013835,2]
[351922947,1738846241137,-767.75,0.00013835,2]
[351922949,1738846241146,-1406.44,0.00013835,2]
[351922951,1738846241156,-500.0,0.00013835,2]
[351922953,1738846241165,-556.94651755,0.00013835,2]
[351922955,1738846241175,-3352.71,0.00013835,2]
[351922957,1738846241185,-500.0,0.00013835,2]
[351922959,1738846241194,-658.64,0.00013835,2]
[351922961,1738846241204,-500.0,0.00013835,2]
[351922963,1738846241213,-7608.9,0.00013835,2]
[351922965,1738846241223,-500.0,0.00013835,2]
[351922967,1738846241232,-13844.15,0.00013835,2]
[351922969,1738846241242,-500.0,0.00013835,2]
[351922971,1738846241252,-500.0,0.00013835,2]
[351922973,1738846241261,-500.0,0.00013835,2]
[351922975,1738846241271,-1047.98,0.00013835,2]
[351922977,1738846241280,-157.36397208,0.00013835,2]
[351922979,1738846241290,-1961.93,0.00013835,2]
[351922981,1738846241299,-500.0,0.00013835,2]
[351922983,1738846241308,-500.0,0.00013835,2]
[351922985,1738846241318,-900.96,0.00013835,2]
[351922987,1738846241327,-1179.15,0.00013835,2]
[351922989,1738846241337,-500.0,0.00013835,2]
[351922991,1738846241346,-1337.62,0.00013835,2]
[351922993,1738846241356,-500.0,0.00013835,2]
[351922995,1738846241365,-594.11,0.00013835,2]
[351922997,1738846241374,-1092.55,0.00013835,2]
[351922999,1738846241383,-500.0,0.00013835,2]
[351923001,1738846241393,-500.0,0.00013835,2]
[351923004,1738846241403,-500.0,0.00013835,2]
[351923006,1738846241412,-4301.89,0.00013835,2]
[351923007,1738846241420,-500.0,0.00013835,2]
[351923009,1738846241430,-500.0,0.00013835,2]
[351923012,1738846241440,-500.0,0.00013835,2]
[351923014,1738846241449,-500.0,0.00013835,2]
[351923015,1738846241459,-500.0,0.00013835,2]
[351923022,1738846241507,-500.0,0.00013835,2]
[351923023,1738846241516,-500.0,0.00013835,2]
[351923024,1738846241526,-500.0,0.00013835,2]
[351923025,1738846241535,-5457.4,0.00013835,2]
[351923027,1738846241545,-41988.94,0.00013835,2]
[351923029,1738846241559,-505.06596654,0.00013835,2]
[351923031,1738846241571,-452.45943252,0.00013835,2]
[351923033,1738846241580,-2286.09,0.00013835,2]
[351923035,1738846241589,-500.0,0.00013835,2]
[351923036,1738846241599,-500.0,0.00013835,2]
[351923037,1738846241608,-500.0,0.00013835,2]
[351923038,1738846241617,-2061.62,0.00013835,2]
[351923039,1738846241626,-500.0,0.00013835,2]
[351923040,1738846241637,-1368.27,0.00013835,2]
[351923041,1738846241646,-500.0,0.00013835,2]
[351923042,1738846241656,-2454.91,0.00013835,2]
[351923043,1738846241665,-500.0,0.00013835,2]
[351923044,1738846241675,-500.0,0.00013835,2]
[351923045,1738846241684,-506.71006065,0.00013835,2]
[351923046,1738846241694,-500.0,0.00013835,2]
[351923048,1738846241703,-500.0,0.00013835,2]
[351923049,1738846241712,-500.0,0.00013835,2]
[351923051,1738846241721,-500.0,0.00013835,2]
[351923053,1738846241731,-948.46,0.00013835,2]
[351923055,1738846241740,-1574.82,0.00013835,2]
[351923057,1738846241750,-500.0,0.00013835,2]
[351923059,1738846241759,-17564.73,0.00013835,2]
[351923061,1738846241768,-1759.52,0.00013835,2]
[351923063,1738846241777,-520.68859544,0.00013835,2]
[351923065,1738846241787,-1357.54,0.00013835,2]
[351923067,1738846241796,-500.0,0.00013835,2]
[351923069,1738846241806,-500.0,0.00013835,2]
[351923071,1738846241815,-380.9169895,0.00013835,2]
[351923073,1738846241824,-500.0,0.00013835,2]
[351923075,1738846241834,-2380.35,0.00013835,2]
[351923077,1738846241843,-1564.44,0.00013835,2]
[351923079,1738846241853,-761.62,0.00013835,2]
[351923081,1738846241861,-500.0,0.00013835,2]
[351923083,1738846241870,-598.17,0.00013835,2]
[351923085,1738846241880,-452.5004664,0.00013835,2]
[351923087,1738846241889,-703.94,0.00013835,2]
[351923089,1738846241898,-500.0,0.00013835,2]
[351923091,1738846241908,-500.0,0.00013835,2]
[351923093,1738846241918,-500.0,0.00013835,2]
[351923095,1738846241927,-500.0,0.00013835,2]
[351923097,1738846241937,-877.71,0.00013835,2]
[351923099,1738846241946,-500.0,0.00013835,2]
[351923101,1738846241956,-780.62,0.00013835,2]
[351923103,1738846241965,-500.0,0.00013835,2]
[351923105,1738846241974,-500.0,0.00013835,2]
[351923106,1738846241983,-3605.2,0.00013835,2]
[351923108,1738846241992,-3288.75,0.00013835,2]
[351923110,1738846242002,-500.0,0.00013835,2]
[351923112,1738846242011,-500.0,0.00013835,2]
[351923114,1738846242021,-500.0,0.00013835,2]
[351923117,1738846242030,-500.0,0.00013835,2]
[351923119,1738846242039,-4009.1,0.00013835,2]
[351923121,1738846242049,-864.07,0.00013835,2]
[351923123,1738846242059,-519.76,0.00013835,2]
[351923125,1738846242068,-1897.37,0.00013835,2]
[351923127,1738846242078,-1408.26,0.00013835,2]
[351923129,1738846242087,-1811.66,0.00013835,2]
[351923131,1738846242096,-517.54206974,0.00013835,2]
[351923133,1738846242105,-1807.71,0.00013835,2]
[351923135,1738846242114,-500.0,0.00013835,2]
[351923137,1738846242124,-9652.79,0.00013835,2]
[351923139,1738846242133,-500.0,0.00013835,2]
[351923141,1738846242142,-1407.51,0.00013835,2]
[351923143,1738846242152,-500.0,0.00013835,2]
[351923145,1738846242162,-500.0,0.00013835,2]
[351923147,1738846242171,-930.5,0.00013835,2]
[351923149,1738846242181,-763.73,0.00013835,2]
[351923151,1738846242190,-833.96,0.00013835,2]
[351923153,1738846242199,-619.47,0.00013835,2]
[351923155,1738846242208,-500.0,0.00013835,2]
[351923157,1738846242217,-500.0,0.00013835,2]
[351923159,1738846242227,-500.0,0.00013835,2]
[351923161,1738846242236,-500.0,0.00013835,2]
[351923163,1738846242245,-500.0,0.00013835,2]
[351923165,1738846242254,-500.0,0.00013835,2]
[351923167,1738846242263,-500.0,0.00013835,2]
[351923169,1738846242272,-500.0,0.00013835,2]
[351923171,1738846242281,-500.0,0.00013835,2]
[351923173,1738846242290,-500.0,0.00013835,2]
[351923175,1738846242299,-641.43,0.00013835,2]
[351923177,1738846242308,-1295.21,0.00013835,2]
[351923179,1738846242318,-153.4425861,0.00013863,2]
[351923181,1738846242327,-434.1982094,0.00013863,2]
[351923183,1738846242336,-308.695529,0.00013863,2]
[351923185,1738846242349,-151.0,0.000139,2]
[351923186,1738846242359,-609.57,0.00013972,2]
[351923188,1738846242368,-327.28588589,0.00013972,2]
[351923191,1738846242378,-500.0,0.00013972,2]
[351923193,1738846242389,-500.0,0.00013972,2]
[351923195,1738846242399,-500.0,0.00013972,2]
[351923197,1738846242408,-500.0,0.00013972,2]
[351923199,1738846242417,-500.0,0.00013972,2]
[351923201,1738846242427,-1438.0,0.00013972,2]
[351923203,1738846242436,-500.0,0.00013972,2]
[351923204,1738846242445,-500.0,0.00013972,2]
[351923207,1738846242455,-500.0,0.00013972,2]
[351923209,1738846242465,-887.37,0.00013972,2]
[351923211,1738846242474,-500.0,0.00013972,2]
[351923213,1738846242484,-500.0,0.00013972,2]
[351923215,1738846242493,-527.1,0.00013972,2]
[351923217,1738846242503,-500.0,0.00013972,2]
[351923219,1738846242512,-210.41962728,0.00013972,2]
[351923221,1738846242522,-660.99,0.00013972,2]
[351923223,1738846242532,-795.39,0.00013972,2]
[351923225,1738846242541,-500.0,0.00013972,2]
[351923227,1738846242551,-500.0,0.00013972,2]
[351923229,1738846242566,-889.35,0.00013972,2]
[351923231,1738846242575,-500.0,0.00013972,2]
[351923233,1738846242586,-648.24,0.00013972,2]
[351923235,1738846242596,-752.64,0.00013972,2]
[351923237,1738846242606,-500.0,0.00013972,2]
[351923239,1738846242615,-500.0,0.00013972,2]
[351923241,1738846242625,-500.0,0.00013972,2]
[351923243,1738846242635,-500.0,0.00013972,2]
[351923245,1738846242644,-500.0,0.00013972,2]
[351923247,1738846242653,-500.0,0.00013972,2]
[351923249,1738846242663,-500.0,0.00013972,2]
[351923252,1738846242672,-500.0,0.00013972,2]
[351923254,1738846242682,-1652.33,0.00013972,2]
[351923256,1738846242691,-1064.01,0.00013972,2]
[351923258,1738846242700,-1582.08,0.00013972,2]
[351923260,1738846242710,-473.11195959,0.00013972,2]
[351923261,1738846242719,-601.19,0.00013972,2]
[351923263,1738846242728,-500.0,0.00013972,2]
[351923265,1738846242737,-774.03,0.00013972,2]
[351923267,1738846242747,-500.0,0.00013972,2]
[351923269,1738846242756,-500.0,0.00013972,2]
[351923273,1738846242766,-724.34,0.00013972,2]
[351923276,1738846242775,-500.0,0.00013972,2]
[351923278,1738846242784,-1335.36,0.00013972,2]
[351923280,1738846242793,-500.0,0.00013972,2]
[351923285,1738846242803,-1157.62,0.00013972,2]
[351923288,1738846242813,-500.0,0.00013972,2]
[351923290,1738846242823,-500.0,0.00013972,2]
[351923291,1738846242832,-500.0,0.00013972,2]
[351923294,1738846242842,-1115.31,0.00013972,2]
[351923295,1738846242851,-767.75,0.00013972,2]
[351923297,1738846242861,-1406.44,0.00013972,2]
[351923299,1738846242870,-3352.71,0.00013972,2]
[351923302,1738846242880,-658.64,0.00013972,2]
[351923303,1738846242890,-500.0,0.00013972,2]
[351923305,1738846242900,-7608.9,0.00013972,2]
[351923307,1738846242909,-509.0015204,0.00013972,2]
[351923309,1738846242919,-13844.15,0.00013972,2]
[351923311,1738846242928,-500.0,0.00013972,2]
[351923313,1738846242937,-1047.98,0.00013972,2]
[351923315,1738846242947,-1961.93,0.00013972,2]
[351923317,1738846242956,-441.5,0.00013972,2]
[351923320,1738846242966,-585.26779649,0.00013972,2]
[351923322,1738846242976,-900.96,0.00013972,2]
[351923324,1738846242986,-1179.15,0.00013972,2]
[351923326,1738846242996,-1337.62,0.00013972,2]
[351923328,1738846243006,-594.11,0.00013972,2]
[351923330,1738846243015,-1092.55,0.00013972,2]
[351923332,1738846243025,-401.4927269,0.00013972,2]
[351923334,1738846243039,-4301.89,0.00013972,2]
[351923336,1738846243049,-500.0,0.00013972,2]
[351923338,1738846243060,-500.0,0.00013972,2]
[351923341,1738846243069,-500.0,0.00013972,2]
[351923343,1738846243079,-5457.4,0.00013972,2]
[351923345,1738846243089,-41988.94,0.00013972,2]
[351923347,1738846243099,-2286.09,0.00013972,2]
[351923349,1738846243108,-500.0,0.00013972,2]
[351923351,1738846243118,-500.0,0.00013972,2]
[351923353,1738846243128,-500.0,0.00013972,2]
[351923355,1738846243137,-2061.62,0.00013972,2]
[351923357,1738846243147,-1368.27,0.00013972,2]
[351923359,1738846243156,-500.0,0.00013972,2]
[351923361,1738846243166,-2454.91,0.00013972,2]
[351923363,1738846243175,-500.0,0.00013972,2]
[351923365,1738846243185,-500.0,0.00013972,2]
[351923367,1738846243195,-500.0,0.00013972,2]
[351923369,1738846243204,-948.46,0.00013972,2]
[351923371,1738846243214,-1574.82,0.00013972,2]
[351923373,1738846243223,-500.0,0.00013972,2]
[351923375,1738846243233,-17564.73,0.00013972,2]
[351923377,1738846243243,-1759.52,0.00013972,2]
[351923379,1738846243253,-1357.54,0.00013972,2]
[351923381,1738846243262,-500.0,0.00013972,2]
[351923383,1738846243272,-500.0,0.00013972,2]
[351923385,1738846243282,-500.0,0.00013972,2]
[351923387,1738846243291,-2380.35,0.00013972,2]
[351923389,1738846243301,-1564.44,0.00013972,2]
[351923391,1738846243310,-761.62,0.00013972,2]
[351923393,1738846243320,-614.88,0.00013972,2]
[351923395,1738846243329,-598.17,0.00013972,2]
[351923397,1738846243338,-703.94,0.00013972,2]
[351923399,1738846243348,-500.0,0.00013972,2]
[351923401,1738846243357,-500.0,0.00013972,2]
[351923403,1738846243366,-345.32158017,0.00013972,2]
[351923405,1738846243376,-877.71,0.00013972,2]
[351923407,1738846243385,-500.0,0.00013972,2]
[351923409,1738846243395,-780.62,0.00013972,2]
[351923411,1738846243405,-500.0,0.00013972,2]
[351923413,1738846243414,-500.0,0.00013972,2]
[351923415,1738846243425,-3605.2,0.00013972,2]
[351923417,1738846243436,-3288.75,0.00013972,2]
[351923419,1738846243447,-500.0,0.00013972,2]
[351923420,1738846243456,-500.0,0.00013972,2]
[351923421,1738846243466,-500.0,0.00013972,2]
[351923422,1738846243475,-500.0,0.00013972,2]
[351923423,1738846243484,-4009.1,0.00013972,2]
[351923424,1738846243493,-864.07,0.00013972,2]
[351923425,1738846243503,-519.76,0.00013972,2]
[351923426,1738846243512,-1897.37,0.00013972,2]
[351923427,1738846243521,-1408.26,0.00013972,2]
[351923428,1738846243530,-1811.66,0.00013972,2]
[351923429,1738846243540,-1807.71,0.00013972,2]
[351923430,1738846243549,-500.0,0.00013972,2]
[351923432,1738846243562,-9652.79,0.00013972,2]
[351923435,1738846243571,-500.0,0.00013972,2]
[351923438,1738846243581,-1407.51,0.00013972,2]
[351923442,1738846243591,-500.0,0.00013972,2]
[351923446,1738846243600,-930.5,0.00013972,2]
[351923450,1738846243609,-763.73,0.00013972,2]
[351923454,1738846243619,-833.96,0.00013972,2]
[351923457,1738846243629,-619.47,0.00013972,2]
[351923460,1738846243640,-500.0,0.00013972,2]
[351923463,1738846243650,-500.0,0.00013972,2]
[351923466,1738846243659,-500.0,0.00013972,2]
[351923469,1738846243669,-500.0,0.00013972,2]
[351923472,1738846243678,-500.0,0.00013972,2]
[351923475,1738846243688,-500.0,0.00013972,2]
[351923478,1738846243698,-500.0,0.00013972,2]
[351923481,1738846243708,-1295.21,0.00013972,2]
[351923485,1738846243717,-400.0,0.00013973,2]
[351923488,1738846243728,-151.0,0.00014,2]
[351923491,1738846243737,-151.0,0.00014,2]
[351923494,1738846243748,-160.0,0.00014004,3]
[351923497,1738846243757,-436.45367879,0.0001407,2]
[351923500,1738846243768,-151.0,0.000141,2]
[351923503,1738846243778,-1924.6484971,0.00014103,2]
[351923506,1738846243789,-609.57,0.00014109,2]
[351923509,1738846243799,-500.0,0.00014109,2]
[351923512,1738846243809,-500.0,0.00014109,2]
[351923514,1738846243819,-151.0,0.00014109,2]
[351923516,1738846243829,-500.0,0.00014109,2]
[351923518,1738846243839,-151.0,0.00014109,2]
[351923520,1738846243849,-500.0,0.00014109,2]
[351923522,1738846243859,-151.0,0.00014109,2]
[351923524,1738846243869,-500.0,0.00014109,2]
[351923526,1738846243879,-1438.0,0.00014109,2]
[351923529,1738846243889,-500.0,0.00014109,2]
[351923532,1738846243899,-500.0,0.00014109,2]
[351923535,1738846243909,-500.0,0.00014109,2]
[351923538,1738846243921,-887.37,0.00014109,2]
[351923541,1738846243931,-500.0,0.00014109,2]
[351923544,1738846243941,-500.0,0.00014109,2]
[351923546,1738846243951,-500.0,0.00014109,2]
[351923548,1738846243961,-151.0,0.00014109,2]
[351923550,1738846243971,-151.0,0.00014109,2]
[351923552,1738846243981,-660.99,0.00014109,2]
[351923554,1738846243991,-795.39,0.00014109,2]
[351923556,1738846244001,-500.0,0.00014109,2]
[351923558,1738846244011,-151.0,0.00014109,2]
[351923560,1738846244023,-500.0,0.00014109,2]
[351923562,1738846244033,-889.35,0.00014109,2]
[351923564,1738846244043,-500.0,0.00014109,2]
[351923566,1738846244053,-648.24,0.00014109,2]
[351923568,1738846244063,-752.64,0.00014109,2]
[351923570,1738846244074,-500.0,0.00014109,2]
[351923572,1738846244083,-500.0,0.00014109,2]
[351923574,1738846244093,-151.0,0.00014109,2]
[351923576,1738846244103,-500.0,0.00014109,2]
[351923578,1738846244113,-500.0,0.00014109,2]
[351923580,1738846244123,-500.0,0.00014109,2]
[351923583,1738846244133,-500.0,0.00014109,2]
[351923585,1738846244143,-500.0,0.00014109,2]
[351923587,1738846244152,-500.0,0.00014109,2]
[351923589,1738846244163,-1652.33,0.00014109,2]
[351923591,1738846244173,-1064.01,0.00014109,2]
[351923593,1738846244184,-1582.08,0.00014109,2]
[351923595,1738846244194,-151.0,0.00014109,2]
[351923597,1738846244204,-151.0,0.00014109,2]
[351923599,1738846244214,-601.19,0.00014109,2]
[351923601,1738846244223,-151.0,0.00014109,2]
[351923603,1738846244238,-176.91,0.00014109,2]
[351923604,1738846244252,-151.0,0.00014109,2]
[351923607,1738846244262,-151.0,0.00014109,2]
[351923609,1738846244272,-774.03,0.00014109,2]
[351923611,1738846244282,-500.0,0.00014109,2]
[351923613,1738846244292,-366.55202595,0.00014109,2]
[351923615,1738846244302,-724.34,0.00014109,2]
[351923617,1738846244311,-500.0,0.00014109,2]
[351923619,1738846244321,-1335.36,0.00014109,2]
[351923621,1738846244330,-500.0,0.00014109,2]
[351923623,1738846244339,-1157.62,0.00014109,2]
[351923625,1738846244349,-266.410977,0.00014109,2]
[351923627,1738846244360,-266.410977,0.00014109,2]
[351923629,1738846244370,-151.0,0.00014109,2]
[351923631,1738846244380,-151.0,0.00014109,2]
[351923633,1738846244390,-500.0,0.00014109,2]
[351923635,1738846244399,-151.0,0.00014109,2]
[351923637,1738846244408,-500.0,0.00014109,2]
[351923639,1738846244418,-500.0,0.00014109,2]
[351923641,1738846244429,-1115.31,0.00014109,2]
[351923643,1738846244439,-767.75,0.00014109,2]
[351923645,1738846244449,-1406.44,0.00014109,2]
[351923647,1738846244459,-3352.71,0.00014109,2]
[351923649,1738846244469,-658.64,0.00014109,2]
[351923651,1738846244479,-500.0,0.00014109,2]
[351923653,1738846244489,-7608.9,0.00014109,2]
[351923655,1738846244499,-13844.15,0.00014109,2]
[351923657,1738846244508,-500.0,0.00014109,2]
[351923659,1738846244517,-1047.98,0.00014109,2]
[351923661,1738846244527,-1961.93,0.00014109,2]
[351923663,1738846244537,-900.96,0.00014109,2]
[351923665,1738846244548,-1179.15,0.00014109,2]
[351923667,1738846244563,-1337.62,0.00014109,2]
[351923670,1738846244574,-594.11,0.00014109,2]
[351923672,1738846244584,-1092.55,0.00014109,2]
[351923674,1738846244595,-4301.89,0.00014109,2]
[351923676,1738846244605,-500.0,0.00014109,2]
[351923677,1738846244615,-500.0,0.00014109,2]
[351923680,1738846244625,-206.959826,0.00014109,2]
[351923682,1738846244635,-500.0,0.00014109,2]
[351923684,1738846244645,-5457.4,0.00014109,2]
[351923686,1738846244654,-41988.94,0.00014109,2]
[351923687,1738846244664,-171.845572,0.00014109,2]
[351923689,1738846244675,-171.845572,0.00014109,2]
[351923692,1738846244685,-2286.09,0.00014109,2]
[351923694,1738846244694,-500.0,0.00014109,2]
[351923696,1738846244704,-500.0,0.00014109,2]
[351923698,1738846244713,-2061.62,0.00014109,2]
[351923700,1738846244725,-151.0,0.00014109,2]
[351923702,1738846244734,-1368.27,0.00014109,2]
[351923704,1738846244744,-2454.91,0.00014109,2]
[351923706,1738846244754,-311.62396855,0.00014109,2]
[351923708,1738846244765,-500.0,0.00014109,2]
[351923710,1738846244776,-151.0,0.00014109,2]
[351923712,1738846244786,-500.0,0.00014109,2]
[351923714,1738846244796,-948.46,0.00014109,2]
[351923716,1738846244806,-1574.82,0.00014109,2]
[351923718,1738846244816,-151.0,0.00014109,2]
[351923720,1738846244826,-500.0,0.00014109,2]
[351923722,1738846244836,-151.0,0.00014109,2]
[351923724,1738846244846,-17564.73,0.00014109,2]
[351923726,1738846244855,-1759.52,0.00014109,2]
[351923728,1738846244866,-1357.54,0.00014109,2]
[351923730,1738846244876,-500.0,0.00014109,2]
[351923732,1738846244887,-500.0,0.00014109,2]
[351923734,1738846244897,-2380.35,0.00014109,2]
[351923736,1738846244907,-1564.44,0.00014109,2]
[351923738,1738846244916,-761.62,0.00014109,2]
[351923740,1738846244926,-598.17,0.00014109,2]
[351923742,1738846244936,-703.94,0.00014109,2]
[351923744,1738846244946,-500.0,0.00014109,2]
[351923746,1738846244957,-500.0,0.00014109,2]
[351923748,1738846244967,-877.71,0.00014109,2]
[351923750,1738846244977,-500.0,0.00014109,2]
[351923752,1738846244988,-780.62,0.00014109,2]
[351923754,1738846244999,-151.0,0.00014109,2]
[351923756,1738846245011,-500.0,0.00014109,2]
[351923758,1738846245023,-500.0,0.00014109,2]
[351923760,1738846245033,-3605.2,0.00014109,2]
[351923763,1738846245042,-3288.75,0.00014109,2]
[351923765,1738846245052,-500.0,0.00014109,2]
[351923766,1738846245062,-500.0,0.00014109,2]
[351923769,1738846245072,-500.0,0.00014109,2]
[351923771,1738846245081,-637.3817515,0.00014109,2]
[351923773,1738846245091,-268.272087,0.00014109,2]
[351923775,1738846245102,-4009.1,0.00014109,2]
[351923777,1738846245112,-268.272087,0.00014109,2]
[351923779,1738846245123,-864.07,0.00014109,2]
[351923781,1738846245134,-519.76,0.00014109,2]
[351923783,1738846245144,-1897.37,0.00014109,2]
[351923785,1738846245155,-1408.26,0.00014109,2]
[351923787,1738846245165,-1021.62799641,0.00014109,2]
[351923811,1738846245525,-790.03200359,0.00014109,2]
[351923813,1738846245535,-1807.71,0.00014109,2]
[351923815,1738846245544,-500.0,0.00014109,2]
[351923817,1738846245556,-3253.53966048,0.00014109,2]
[351923820,1738846245574,-1740.09415841,0.00014109,2]
[351923822,1738846245585,-4659.15618111,0.00014109,2]
[351923824,1738846245595,-500.0,0.00014109,2]
[351923826,1738846245605,-1407.51,0.00014109,2]
[351923828,1738846245615,-500.0,0.00014109,2]
[351923830,1738846245624,-930.5,0.00014109,2]
[351923832,1738846245634,-763.73,0.00014109,2]
[351923834,1738846245644,-833.96,0.00014109,2]
[351923836,1738846245653,-151.0,0.00014109,2]
[351923838,1738846245662,-810.288646,0.00014109,2]
[351923840,1738846245671,-193.285906,0.00014109,2]
[351923842,1738846245681,-619.47,0.00014109,2]
[351923844,1738846245690,-500.0,0.00014109,2]
[351923846,1738846245700,-810.288646,0.00014109,2]
[351923849,1738846245710,-193.285906,0.00014109,2]
[351923851,1738846245719,-500.0,0.00014109,2]
[351923853,1738846245728,-500.0,0.00014109,2]
[351923855,1738846245737,-500.0,0.00014109,2]
[351923857,1738846245747,-151.0,0.00014109,2]
[351923859,1738846245756,-343.30206826,0.00014109,2]
[351923861,1738846245766,-151.0,0.00014109,2]
[351923863,1738846245776,-500.0,0.00014109,2]
[351923865,1738846245786,-500.0,0.00014109,2]
[351923867,1738846245795,-151.0,0.00014109,2]
[351923869,1738846245805,-1295.21,0.00014109,2]
[351923871,1738846245814,-392.915,0.00014137,2]
[351923873,1738846245823,-165.311845,0.00014149,2]
[351923875,1738846245832,-354.6875562,0.00014164,2]
[351923877,1738846245841,-354.6875562,0.00014164,2]
[351923879,1738846245850,-354.6875562,0.00014164,2]
[351923881,1738846245860,-354.6875562,0.00014164,2]
[351923883,1738846245869,-354.6875562,0.00014164,2]
[351923885,1738846245878,-354.6875562,0.00014164,2]
[351923887,1738846245887,-354.6875562,0.00014164,2]
[351923889,1738846245896,-354.6875562,0.00014164,2]
[351923891,1738846245906,-354.6875562,0.00014164,2]
[351923893,1738846245916,-354.6875562,0.00014164,2]
[351923895,1738846245927,-709.3751124,0.00014164,2]
[351923897,1738846245936,-11664.9188733,0.00014177,2]
[351923899,1738846245946,-733.0,0.000142,5]
[351923901,1738846245955,-2302.53919911,0.000142,2]
[351923903,1738846245964,-1000.0,0.00014221,2]
[351923905,1738846245975,-1000.0,0.00014221,2]
[351923907,1738846245984,-163.0,0.00014232,2]
[351923910,1738846245993,-163.0,0.00014232,2]
[351923912,1738846246003,-163.0,0.00014232,2]
[351923914,1738846246012,-163.0,0.00014232,2]
[351923917,1738846246022,-163.0,0.00014232,2]
[351923920,1738846246031,-166.93,0.00014232,2]
[351923923,1738846246041,-153.0,0.00014232,2]
[351923926,1738846246051,-153.0,0.00014232,2]
[351923929,1738846246060,-153.0,0.00014232,2]
[351923932,1738846246070,-153.0,0.00014232,2]
[351923935,1738846246081,-153.0,0.00014232,2]
[351923938,1738846246090,-153.0,0.00014232,2]
[351923940,1738846246100,-153.0,0.00014232,2]
[351923942,1738846246110,-153.0,0.00014232,2]
[351923944,1738846246120,-153.0,0.00014232,2]
[351923946,1738846246129,-153.0,0.00014232,2]
[351923948,1738846246139,-153.0,0.00014232,2]
[351923950,1738846246148,-153.0,0.00014232,2]
[351923952,1738846246158,-153.0,0.00014232,2]
[351923954,1738846246167,-153.0,0.00014232,2]
[351923956,1738846246177,-153.0,0.00014232,2]
[351923958,1738846246186,-153.0,0.00014232,2]
[351923960,1738846246196,-153.0,0.00014232,2]
[351923962,1738846246205,-153.0,0.00014232,2]
[351923964,1738846246214,-240.26,0.00014232,2]
[351923966,1738846246223,-151.0,0.00014246,2]
[351923968,1738846246232,-609.57,0.00014246,2]
[351923970,1738846246242,-500.0,0.00014246,2]
[351923972,1738846246252,-500.0,0.00014246,2]
[351923974,1738846246261,-337.29194714,0.00014246,2]
[351923976,1738846246270,-500.0,0.00014246,2]
[351923978,1738846246280,-1438.0,0.00014246,2]
[351923980,1738846246289,-500.0,0.00014246,2]
[351923982,1738846246300,-500.0,0.00014246,2]
[351923984,1738846246309,-516.9100398,0.00014246,2]
[351923986,1738846246319,-887.37,0.00014246,2]
[351923988,1738846246328,-500.0,0.00014246,2]
[351923990,1738846246337,-500.0,0.00014246,2]
[351923992,1738846246346,-500.0,0.00014246,2]
[351923994,1738846246355,-660.99,0.00014246,2]